bitfinex/quotes_SOLUSD_20250908
["timestamp","ask_amount","ask_price","bid_price","bid_amount"]
[1757289886487,0.72,205.87,205.83,0.03]
[1757289887299,0.72,205.87,205.83,29.11]
[1757289887998,0.72,205.87,205.83,33.96820261]
[1757289888297,38.66,205.89,205.83,34.61820261]
[1757289888494,39.38,205.89,205.83,34.61820261]
[1757289889283,38.66,205.91,205.84,14.24559401]
[1757289889479,0.72,205.9,205.84,14.24559401]
[1757289889684,0.72,205.9,205.84,94.34559401]
[1757289890889,0.72,205.9,205.85,4.85790624]
[1757289891092,0.72,205.9,205.85,5.50790624]
[1757289892303,5.57604622,205.93,205.86,0.65]
[1757289892480,44.19604622,205.93,205.86,0.65]
[1757289893404,5.57604622,205.93,205.86,0.65]
[1757289893784,44.17604622,205.93,205.86,5.50746968]
[1757289894104,0.72,205.92,205.86,5.50746968]
[1757289895276,0.72,205.92,205.86,85.60746968]
[1757289895901,12.19840376,205.96,205.87,43.32559401]
[1757289895902,0.72,205.94,205.87,43.32559401]
[1757289896098,0.72,205.94,205.87,69.32559401]
[1757289896695,0.72,205.94,205.87,83.90179108]
[1757289897004,0.72,205.94,205.88,4.85719836]
[1757289897297,0.72,205.94,205.89,29.08]
[1757289897500,4.85567376,205.95,205.89,29.08]
[1757289897501,0.72,205.93,205.89,29.08]
[1757289899081,4.85567376,205.95,205.89,29.08]
[1757289899277,0.72,205.92,205.85,80.1]
[1757289899509,0.72,205.91,205.85,80.1]
[1757289900511,0.72,205.91,205.85,84.95786344]
[1757289901588,39.28,205.93,205.86,43.40559401]
[1757289901806,39.28,205.93,205.87,0.65]
[1757289902202,0.72,205.93,205.87,0.65]
[1757289902890,0.72,205.93,205.88,4.85719836]
[1757289903210,0.72,205.93,205.88,5.50719836]
[1757289903604,0.72,205.95,205.89,0.65]
[1757289903910,0.72,205.95,205.89,26.65]
[1757289904287,0.06,205.96,205.9,14.24559401]
[1757289904502,0.06,205.96,205.91,0.65]
[1757289904700,0.06,205.96,205.9,93.69559401]
[1757289905008,0.06,205.96,205.91,0.65]
[1757289905184,0.06,205.96,205.92,0.65]
[1757289906197,0.06,205.96,205.93,31.50601903]
[1757289907107,0.06,205.96,205.93,30.85601903]
[1757289907314,0.06,205.96,205.95,26.0]
[1757289907691,0.06,205.96,205.95,26.65]
[1757289907914,0.03590451,205.96,205.95,40.24559401]
[1757289908287,0.03590451,205.96,205.95,125.20114147]
[1757289908903,0.03590451,205.96,205.95,139.77096736]
[1757289909096,0.03590451,205.96,205.95,59.67096736]
[1757289909432,0.03590451,205.96,205.95,44.45114147]
[1757289909592,0.03590451,205.96,205.95,45.10114147]
[1757289911609,0.03590451,205.96,205.95,44.60114147]
[1757289913917,0.03590451,205.96,205.95,45.08669621]
[1757289914128,0.03590451,205.96,205.95,154.34669621]
[1757289914293,0.03590451,205.96,205.95,192.28114147]
[1757289914693,0.03590451,205.96,205.95,194.22369058]
[1757289915012,0.06,205.99,205.98,13.59559401]
[1757289915235,0.06,205.99,205.98,93.5996895]
[1757289915528,0.06,205.99,205.98,94.2496895]
[1757289915700,0.06,205.99,205.98,96.19204995]
[1757289915900,0.06,205.99,205.98,101.04689022]
[1757289916319,0.06,205.99,205.98,100.04689022]
[1757289917218,0.06,205.99,205.98,129.20689022]
[1757289919618,0.06,205.99,205.98,133.12481147]
[1757289920008,1e-08,205.99,205.98,133.12481147]
[1757289920521,0.06,206.0,205.98,133.12481147]
[1757289920737,0.06,206.0,205.99,81.78559401]
[1757289920917,0.06,206.0,205.99,82.27105446]
[1757289921605,0.06,206.0,205.99,84.21303771]
[1757289922006,0.06,206.04,206.03,68.75559401]
[1757289922229,0.06,206.04,206.03,148.6396895]
[1757289922613,0.06,206.04,206.03,150.58167275]
[1757289923236,0.06,206.04,206.03,162.92167275]
[1757289924109,0.06,206.04,206.03,167.77533483]
[1757289926226,0.06,206.04,206.03,168.42533483]
[1757289929732,0.06,206.05,206.03,188.42533483]
[1757289929939,0.06,206.05,206.04,43.24093666]
[1757289930352,0.06,206.05,206.04,45.1826371]
[1757289930512,0.06,206.08,206.07,42.75559401]
[1757289930844,0.06,206.08,206.07,81.01559401]
[1757289931010,0.06,206.08,206.07,81.500866]
[1757289931209,0.06,206.08,206.07,161.32496149]
[1757289931431,0.06,206.08,206.07,308.10102915]
[1757289931638,0.06,206.08,206.07,312.95374909]
[1757289931817,1e-08,206.08,206.07,312.95374909]
[1757289932017,1e-08,206.08,206.07,313.60374909]
[1757289932436,1e-08,206.08,206.07,333.60374909]
[1757289936745,1e-08,206.08,206.07,180.19374909]
[1757289936746,0.66000001,206.08,206.07,180.19374909]
[1757289937338,0.66000001,206.08,206.07,165.63240944]
[1757289937508,0.66000001,206.08,206.07,170.4835312]
[1757289938146,1e-08,206.08,206.07,170.4835312]
[1757289938438,1e-08,206.08,206.07,171.1335312]
[1757289938648,1e-08,206.08,206.07,171.1635312]
[1757289938940,1e-08,206.08,206.07,170.5135312]
[1757289939146,1e-08,206.08,206.07,132.3135312]
[1757289939338,1e-08,206.08,206.07,170.5735312]
[1757289941048,1e-08,206.08,206.07,170.5535312]
[1757289941615,1e-08,206.08,206.07,132.3135312]
[1757289941819,1e-08,206.08,206.07,170.5535312]
[1757289942621,1e-08,206.08,206.07,132.3135312]
[1757289942954,0.66,206.12,206.11,122.51968949]
[1757289943151,0.66,206.12,206.11,165.59146766]
[1757289943526,0.66,206.12,206.11,167.53279116]
[1757289943722,0.66,206.12,206.11,162.68101299]
[1757289943927,0.66,206.12,206.11,122.51968949]
[1757289944834,0.66,206.12,206.11,127.37146766]
[1757289948252,0.06,206.13,206.12,42.75559401]
[1757289948458,0.72,206.13,206.12,42.75559401]
[1757289948632,0.72,206.13,206.12,122.51968949]
[1757289949569,0.72,206.13,206.12,127.37123228]
[1757289951152,0.06,206.17,206.16,26.0]
[1757289951449,0.06,206.17,206.16,105.70409548]
[1757289951754,0.72,206.17,206.16,110.55469695]
[1757289952051,0.72,206.17,206.16,124.15029096]
[1757289952228,0.72,206.17,206.16,105.70409548]
[1757289952429,0.72,206.17,206.16,79.70409548]
[1757289952638,0.72,206.17,206.16,78.26409548]
[1757289953751,5.5703662,206.17,206.16,78.26409548]
[1757289954343,0.72,206.17,206.16,78.26409548]
[1757289954539,5.5703662,206.17,206.16,78.26409548]
[1757289955244,5.5703662,206.17,206.12,104.26409548]
[1757289955441,0.66,206.16,206.12,104.26409548]
[1757289955653,0.66,206.15,206.12,104.26409548]
[1757289955953,0.06,206.17,206.13,13.59559401]
[1757289956259,0.66,206.16,206.13,13.59559401]
[1757289956742,0.06,206.17,206.13,42.75559401]
[1757289956947,0.06,206.17,206.15,39.59559401]
[1757289957147,0.06,206.17,206.16,26.0]
[1757289957453,0.06,206.17,206.16,55.16]
[1757289957864,0.72,206.17,206.16,55.16]
[1757289958440,0.06,206.17,206.16,55.16]
[1757289958760,0.72,206.17,206.15,78.26409548]
[1757289958946,0.66,206.16,206.15,78.26409548]
[1757289961160,0.06,206.17,206.15,78.26409548]
[1757289961960,0.06,206.17,206.15,83.11488898]
[1757289962357,0.06,206.17,206.15,83.79488898]
[1757289962747,0.06,206.17,206.15,83.11488898]
[1757289962945,0.06,206.17,206.16,0.68]
[1757289963268,0.06,206.17,206.15,83.11488898]
[1757289963269,0.06,206.17,206.15,83.79488898]
[1757289964354,0.06,206.17,206.16,13.59559401]
[1757289965747,0.06,206.17,206.16,18.44619548]
[1757289966263,0.06,206.17,206.16,126.56029096]
[1757289966659,0.06,206.17,206.16,131.46966646]
[1757289966956,0.0368537,206.17,206.16,131.46966646]
[1757289968167,0.06,206.2,206.19,42.75559401]
[1757289968343,0.06,206.2,206.19,81.36058358]
[1757289968661,0.06,206.2,206.19,82.05058358]
[1757289969344,0.06,206.22,206.21,42.75559401]
[1757289969539,0.06,206.22,206.21,43.24053654]
[1757289969743,0.06,206.22,206.21,81.72559401]
[1757289970150,0.06,206.22,206.21,83.66588166]
[1757289970658,1e-08,206.22,206.21,84.15082419]
[1757289971243,1e-08,206.22,206.21,89.00024953]
[1757289971858,1e-08,206.22,206.21,85.30024953]
[1757289972062,1e-08,206.22,206.21,123.58024953]
[1757289972242,1e-08,206.22,206.21,123.095307]
[1757289974245,0.06,206.28,206.27,42.75559401]
[1757289974561,0.06,206.28,206.27,159.14283578]
[1757289974948,0.06,206.28,206.27,161.08255888]
[1757289975569,0.06,206.28,206.27,165.93057361]
[1757289976167,0.06,206.28,206.27,165.91057361]
[1757289976342,0.06,206.28,206.27,166.60057361]
[1757289977748,0.06,206.3,206.27,166.60057361]
[1757289977959,1e-08,206.29,206.28,82.19037198]
[1757289978149,1e-08,206.3,206.29,13.59559401]
[1757289978354,1e-08,206.3,206.29,43.44559401]
[1757289979469,1e-08,206.3,206.29,48.77789319]
[1757289979855,1e-08,206.3,206.29,89.01705208]
[1757289981455,0.06,206.33,206.32,68.75559401]
[1757289981774,1e-08,206.33,206.32,107.52027799]
[1757289981968,1e-08,206.33,206.32,107.72559401]
[1757289982152,1e-08,206.33,206.32,109.6645649]
[1757289983474,1e-08,206.34,206.33,47.60219896]
[1757289983660,1e-08,206.34,206.33,48.29219896]
[1757289984862,1e-08,206.34,206.33,47.60219896]
[1757289985057,1e-08,206.34,206.33,85.84219896]
[1757289985877,1e-08,206.34,206.33,86.53219896]
[1757289986266,1e-08,206.34,206.33,85.82219896]
[1757289986578,1e-08,206.34,206.33,86.51219896]
[1757289986874,1e-08,206.34,206.33,85.82219896]
[1757289987455,1e-08,206.34,206.33,47.60219896]
[1757289987659,1e-08,206.34,206.33,85.82219896]
[1757289988057,1e-08,206.34,206.33,47.60219896]
[1757289988482,1e-08,206.34,206.33,85.80219896]
[1757289989175,1e-08,206.34,206.33,49.54135785]
[1757289989379,1e-08,206.34,206.33,87.74135785]
[1757289989784,1e-08,206.34,206.33,49.54135785]
[1757289989959,1e-08,206.34,206.33,87.72135785]
[1757289990774,0.2,206.38,206.37,42.75559401]
[1757289991083,0.2,206.38,206.37,80.93559401]
[1757289991478,0.2,206.38,206.37,81.62559401]
[1757289991678,0.2,206.38,206.37,83.56418901]
[1757289991994,0.7,206.46,206.44,30.84388479]
[1757289992286,0.2,206.49,206.45,26.0]
[1757289992873,0.7,206.48,206.45,26.0]
[1757289993073,0.7,206.47,206.45,26.0]
[1757289993275,0.2,206.49,206.48,39.59559401]
[1757289993472,0.7,206.48,206.42,29.16]
[1757289993674,0.7,206.47,206.42,26.0]
[1757289993872,0.7,206.46,206.42,26.0]
[1757289994063,0.7,206.45,206.42,26.0]
[1757289994271,0.7,206.44,206.43,26.0]
[1757289995277,0.2,206.49,206.43,39.59559401]
[1757289995478,0.2,206.49,206.43,44.43981021]
[1757289995479,0.71,206.48,206.43,44.43981021]
[1757289995675,0.71,206.47,206.43,49.28336857]
[1757289995878,0.71,206.47,206.46,26.0]
[1757289996179,0.2,206.49,206.46,26.0]
[1757289996885,0.71,206.48,206.46,26.0]
[1757289997082,0.71,206.47,206.46,26.0]
[1757289999184,0.2,206.49,206.47,26.0]
[1757289999387,0.91,206.49,206.47,26.0]
[1757289999885,0.2,206.49,206.48,39.59559401]
[1757290000567,0.2,206.49,206.48,68.75559401]
[1757290000768,0.2,206.49,206.48,69.44559401]
[1757290001283,0.2,206.49,206.48,112.52867808]
[1757290002577,0.2,206.49,206.48,117.37006518]
[1757290003674,1e-08,206.49,206.48,117.37006518]
[1757290007296,1e-08,206.49,206.48,79.13006518]
[1757290007502,1e-08,206.49,206.48,47.59698111]
[1757290008102,1e-08,206.49,206.48,42.75559401]
[1757290008407,1e-08,206.49,206.48,47.59867808]
[1757290010975,1e-08,206.49,206.48,42.75559401]
[1757290011297,0.71000001,206.49,206.48,68.75559401]
[1757290011497,1e-08,206.49,206.48,68.75559401]
[1757290012079,1e-08,206.49,206.48,39.59559401]
[1757290012789,1e-08,206.49,206.48,39.62559401]
[1757290013893,1e-08,206.49,206.48,44.46867808]
[1757290016409,1e-08,206.49,206.48,26.03]
[1757290018295,0.71000001,206.49,206.48,26.03]
[1757290018891,1e-08,206.49,206.48,26.03]
[1757290019707,0.71000001,206.49,206.48,26.03]
[1757290020900,1e-08,206.49,206.48,26.03]
[1757290022895,1e-08,206.49,206.48,30.87308407]
[1757290023095,1e-08,206.49,206.48,31.56308407]
[1757290023298,1e-08,206.49,206.48,19.15867808]
[1757290023507,1e-08,206.49,206.48,126.42591985]
[1757290023713,0.06,206.52,206.51,26.0]
[1757290023886,0.06,206.52,206.51,142.18724177]
[1757290024091,0.06,206.52,206.51,104.79724177]
[1757290024289,0.06,206.52,206.51,106.73480384]
[1757290024808,0.06,206.52,206.51,106.04480384]
[1757290025011,0.06,206.52,206.51,110.88718435]
[1757290025335,0.06,206.52,206.51,111.59718435]
[1757290025895,0.06,206.52,206.51,154.35277836]
[1757290026101,0.06,206.54,206.53,42.75559401]
[1757290026397,1e-08,206.54,206.53,81.31978516]
[1757290026696,0.71,206.67,206.57,68.75559401]
[1757290026887,0.71,206.67,206.61,26.0]
[1757290027089,0.71,206.67,206.62,4.83980253]
[1757290027286,0.71,206.69,206.63,40.30559401]
[1757290027603,0.71,206.69,206.63,39.59559401]
[1757290028109,0.71,206.68,206.63,39.59559401]
[1757290028312,0.71,206.67,206.63,39.59559401]
[1757290028814,5.03799304,206.7,206.63,39.59559401]
[1757290029016,0.71,206.69,206.63,40.30559401]
[1757290029319,5.03795298,206.7,206.64,0.71]
[1757290029503,5.03795298,206.7,206.66,26.0]
[1757290029712,0.71,206.69,206.66,26.0]
[1757290029902,0.71,206.68,206.66,26.0]
[1757290030097,0.71,206.68,206.65,26.0]
[1757290031224,5.54852618,206.68,206.65,26.0]
[1757290031511,5.54852618,206.68,206.66,26.0]
[1757290031814,0.06,206.69,206.66,26.0]
[1757290032323,0.77,206.69,206.66,26.0]
[1757290032614,0.06,206.69,206.66,26.0]
[1757290032813,0.71,206.68,206.62,4.83817389]
[1757290033015,0.71,206.67,206.58,13.59559401]
[1757290033193,0.71,206.66,206.58,15.53249932]
[1757290033394,5.54909992,206.65,206.59,26.0]
[1757290033714,0.71,206.64,206.59,26.0]
[1757290034216,4.83909992,206.65,206.59,26.0]
[1757290034404,0.71,206.64,206.59,26.0]
[1757290034801,0.71,206.64,206.59,26.71]
[1757290035700,4.83956831,206.63,206.59,26.71]
[1757290037394,0.71,206.68,206.63,26.0]
[1757290037604,0.06,206.69,206.64,0.71]
[1757290037817,0.06,206.69,206.63,26.0]
[1757290038403,4.83839752,206.68,206.6,0.71]
[1757290038608,4.83839752,206.68,206.61,26.0]
[1757290038609,16.93439132,206.68,206.61,26.0]
[1757290039206,12.0959938,206.68,206.61,26.0]
[1757290039718,12.4059938,206.68,206.61,26.0]
[1757290040613,0.31,206.67,206.6,0.71]
[1757290042223,4.83886576,206.66,206.6,0.71]
[1757290043927,4.83886576,206.66,206.38,24.47310978]
[1757290043928,26.0,206.6,206.48,0.74]
[1757290044224,38.37,206.59,206.48,0.74]
[1757290044409,38.37,206.59,206.48,0.03]
[1757290044410,13.59559401,206.58,206.48,0.03]
[1757290044603,26.0,206.55,206.48,0.03]
[1757290045002,0.31,206.54,206.48,0.03]
[1757290045201,2.24868896,206.54,206.48,0.03]
[1757290045921,16.94669054,206.53,206.48,0.03]
[1757290046330,0.31,206.52,206.48,0.03]
[1757290046511,38.26,206.51,206.48,0.03]
[1757290046817,0.31,206.5,206.48,0.03]
[1757290048427,5.15284953,206.49,206.48,0.03]
[1757290049033,18.74844354,206.49,206.48,0.03]
[1757290049324,13.59559401,206.48,206.45,1e-08]
[1757290049506,39.59559401,206.46,206.45,1e-08]
[1757290049706,39.59559401,206.46,206.43,0.03]
[1757290049924,13.59559401,206.44,206.43,0.03]
[1757290050428,18.74961648,206.44,206.43,0.03]
[1757290051926,57.06961648,206.44,206.43,0.03]
[1757290052230,57.08961648,206.44,206.43,0.03]
[1757290052533,4.84402247,206.44,206.43,0.03]
[1757290052706,43.18402247,206.44,206.43,0.03]
[1757290053123,4.84402247,206.44,206.43,0.03]
[1757290053298,43.18402247,206.44,206.43,0.03]
[1757290054819,43.20402247,206.44,206.43,0.03]
[1757290055919,43.51402247,206.44,206.43,0.03]
[1757290056815,57.10961648,206.44,206.43,0.03]
[1757290057327,71.63683432,206.44,206.43,0.03]
[1757290057716,33.29683432,206.44,206.43,0.03]
[1757290057919,71.63683432,206.44,206.43,0.03]
[1757290060421,71.61683432,206.44,206.43,0.03]
[1757290061631,33.29683432,206.44,206.43,0.03]
[1757290061838,57.69124031,206.44,206.43,0.03]
[1757290062417,57.71124031,206.44,206.43,0.03]
[1757290062617,43.14402247,206.44,206.43,0.7]
[1757290062859,4.84402247,206.44,206.43,0.7]
[1757290063142,43.14402247,206.44,206.43,0.7]
[1757290063336,43.16402247,206.44,206.43,0.03]
[1757290064220,4.84378784,206.45,206.43,0.03]
[1757290064419,38.32,206.44,206.43,0.03]
[1757290064741,38.3,206.44,206.43,0.03]
[1757290065643,52.84721784,206.44,206.43,0.03]
[1757290066746,57.69124031,206.44,206.43,0.03]
[1757290068017,58.00124031,206.44,206.43,0.03]
[1757290069246,57.69124031,206.44,206.43,0.03]
[1757290071547,57.69124031,206.44,206.4,0.03]
[1757290071548,39.59559401,206.41,206.4,1e-08]
[1757290071750,77.85559401,206.41,206.4,1e-08]
[1757290072150,78.16559401,206.41,206.4,1e-08]
[1757290072445,97.56036054,206.41,206.4,1e-08]
[1757290076249,97.25036054,206.41,206.4,1e-08]
[1757290077149,13.59559401,206.4,206.27,0.03]
[1757290077445,13.59559401,206.38,206.27,80.13]
[1757290077644,38.22,206.37,206.27,80.13]
[1757290077869,38.22,206.36,206.27,80.13]
[1757290078344,52.77286328,206.35,206.27,80.13]
[1757290078543,38.22,206.34,206.27,80.13]
[1757290078731,38.22,206.33,206.27,80.13]
[1757290078931,67.18017536,206.41,206.27,84.97793309]
[1757290078932,4.84590036,206.36,206.27,84.97793309]
[1757290079154,38.22,206.35,206.28,0.67]
[1757290079333,4.84590036,206.36,206.28,0.67]
[1757290079657,38.22,206.35,206.3,26.0]
[1757290079829,38.22,206.35,206.31,0.67]
[1757290080553,38.22,206.34,206.31,0.67]
[1757290080745,38.22,206.33,206.31,0.67]
[1757290081348,4.84496124,206.4,206.34,26.0]
[1757290081555,38.24,206.39,206.35,0.67]
[1757290082849,43.08521981,206.39,206.35,0.67]
[1757290083042,43.08521981,206.39,206.35,26.67]
[1757290083361,43.08521981,206.39,206.36,0.67]
[1757290083662,43.08521981,206.39,206.31,80.1]
[1757290083852,43.08521981,206.39,206.33,0.67]
[1757290084153,55.19820978,206.39,206.33,0.67]
[1757290084356,69.7482498,206.39,206.33,0.67]
[1757290085366,55.19820978,206.39,206.33,0.67]
[1757290085558,4.84521981,206.39,206.33,0.67]
[1757290085755,38.2,206.38,206.33,0.67]
[1757290085961,38.2,206.37,206.35,0.03]
[1757290086145,38.2,206.36,206.35,0.03]
[1757290086740,38.2,206.36,206.35,0.74]
[1757290088263,4.90500846,206.4,206.35,0.74]
[1757290088264,0.06,206.4,206.35,0.74]
[1757290088462,38.18,206.39,206.35,0.74]
[1757290088667,0.06,206.4,206.35,5.586053]
[1757290088850,38.18,206.39,206.36,0.71]
[1757290089047,38.18,206.39,206.35,0.03]
[1757290089250,43.0254134,206.39,206.35,0.03]
[1757290091054,43.0254134,206.39,206.35,0.74]
[1757290091457,0.69,206.38,206.35,0.03]
[1757290091961,38.16,206.37,206.36,26.71]
[1757290092559,0.06,206.4,206.36,26.71]
[1757290092560,38.18,206.38,206.36,26.71]
[1757290092750,38.18,206.38,206.35,0.03]
[1757290093462,43.02557981,206.38,206.35,0.03]
[1757290093761,0.69,206.37,206.35,0.03]
[1757290094138,0.69,206.36,206.35,0.03]
[1757290094967,43.02557981,206.38,206.35,0.03]
[1757290095146,38.18,206.37,206.35,0.03]
[1757290095862,38.2,206.36,206.35,0.03]
[1757290096061,38.2,206.36,206.35,0.74]
[1757290096366,38.2,206.36,206.35,0.03]
[1757290096746,43.04590036,206.36,206.35,0.03]
[1757290096946,43.73590036,206.36,206.35,0.03]
[1757290097150,43.71590036,206.36,206.35,0.03]
[1757290100862,57.31149437,206.36,206.35,0.03]
[1757290102164,13.59559401,206.35,206.3,0.03]
[1757290102358,38.16,206.34,206.3,0.03]
[1757290102568,38.85,206.34,206.3,0.03]
[1757290103459,4.84660495,206.33,206.3,0.03]
[1757290103656,38.16,206.32,206.3,0.03]
[1757290104262,0.69,206.31,206.3,0.03]
[1757290104569,5.53707479,206.31,206.3,0.03]
[1757290106477,19.1326688,206.31,206.3,0.03]
[1757290108487,26.0,206.28,206.27,1e-08]
[1757290108664,64.14,206.28,206.27,1e-08]
[1757290108983,64.83,206.28,206.27,1e-08]
[1757290110390,69.67777971,206.28,206.27,1e-08]
[1757290110680,31.53777971,206.28,206.27,1e-08]
[1757290110854,69.67777971,206.28,206.27,1e-08]
[1757290111352,83.27337372,206.28,206.27,1e-08]
[1757290114779,83.27337372,206.28,206.27,1e-08]
[1757290115887,86.83988559,206.28,206.27,1e-08]
[1757290117785,48.69988559,206.28,206.27,1e-08]
[1757290117985,86.85988559,206.28,206.27,1e-08]
[1757290120878,48.69988559,206.28,206.27,1e-08]
[1757290121483,86.85988559,206.28,206.27,1e-08]
[1757290122470,86.91988559,206.28,206.27,1e-08]
[1757290122677,86.91988559,206.28,206.22,1e-08]
[1757290122678,13.59559401,206.23,206.22,1e-08]
[1757290122876,55.32210588,206.23,206.22,1e-08]
[1757290123088,76.00210588,206.23,206.22,1e-08]
[1757290124185,80.85106093,206.23,206.22,1e-08]
[1757290124396,60.85106093,206.23,206.22,1e-08]
[1757290126086,62.79313847,206.23,206.22,1e-08]
[1757290136109,62.77734587,206.23,206.22,1e-08]
[1757290136404,62.7783212,206.23,206.22,1e-08]
[1757290138108,23.9383212,206.23,206.22,0.69000001]
[1757290138308,72.27863128,206.23,206.15,0.03]
[1757290138482,68.72693668,206.23,206.15,0.03]
[1757290139208,26.0,206.22,206.15,0.03]
[1757290139401,64.16,206.22,206.15,0.03]
[1757290140399,16.97298869,206.21,206.16,0.69]
[1757290140587,38.16,206.2,206.16,0.69]
[1757290141304,16.97298869,206.21,206.16,0.69]
[1757290141497,4.85013095,206.18,206.16,0.69]
[1757290141696,38.16,206.17,206.16,0.69]
[1757290142503,43.0103662,206.17,206.16,0.69]
[1757290144415,16.97298869,206.21,206.16,0.69]
[1757290144710,38.16,206.2,206.16,0.69]
[1757290145431,38.16,206.2,206.17,0.7]
[1757290145613,38.16,206.2,206.15,0.03]
[1757290145798,38.16,206.2,206.18,0.7]
[1757290146200,38.87,206.2,206.15,0.73]
[1757290146397,4.85013095,206.18,206.15,0.03]
[1757290146704,38.16,206.17,206.15,0.03]
[1757290147108,38.16,206.17,206.15,0.73]
[1757290148716,4.85060147,206.16,206.15,0.03]
[1757290149621,9.13453785,206.16,206.15,0.03]
[1757290150422,8.42453785,206.16,206.15,0.03]
[1757290150819,46.58453785,206.16,206.15,0.03]
[1757290151192,8.42453785,206.16,206.15,0.73]
[1757290151518,46.58453785,206.16,206.15,0.03]
[1757290153123,46.58853153,206.16,206.15,0.03]
[1757290154718,8.42853153,206.16,206.15,0.03]
[1757290154916,46.58853153,206.16,206.15,0.03]
[1757290155609,46.58853153,206.16,206.15,0.73]
[1757290156014,48.53051478,206.16,206.15,0.73]
[1757290156211,10.37051478,206.16,206.15,0.73]
[1757290156522,44.95258472,206.16,206.15,0.73]
[1757290156728,44.95258472,206.16,206.15,0.03]
[1757290159124,6.79258472,206.16,206.15,0.03]
[1757290159309,44.93258472,206.16,206.15,0.03]
[1757290163223,48.51452649,206.16,206.15,0.03]
[1757290164019,10.37452649,206.16,206.15,0.03]
[1757290164332,48.51452649,206.16,206.15,0.03]
[1757290166836,49.22452649,206.16,206.15,0.03]
[1757290167533,49.22563547,206.16,206.15,0.03]
[1757290171045,11.08563547,206.16,206.15,0.03]
[1757290171221,49.22563547,206.16,206.15,0.03]
[1757290172349,48.51563547,206.16,206.15,0.03]
[1757290172538,49.22563547,206.16,206.15,0.03]
[1757290173245,11.08563547,206.16,206.15,0.03]
[1757290173436,49.22563547,206.16,206.15,0.03]
[1757290173949,48.51563547,206.16,206.15,0.03]
[1757290176148,10.37563547,206.16,206.15,0.03]
[1757290176358,48.49563547,206.16,206.15,0.03]
[1757290176653,49.16563547,206.16,206.15,0.03]
[1757290176830,75.16563547,206.16,206.14,1e-08]
[1757290177148,3.58305075,206.15,206.14,1e-08]
[1757290177548,6.1954112,206.15,206.14,1e-08]
[1757290178645,49.16624796,206.15,206.14,1e-08]
[1757290179953,62.76184197,206.15,206.14,1e-08]
[1757290181750,13.59559401,206.14,206.11,1e-08]
[1757290181951,41.70305075,206.13,206.11,1e-08]
[1757290182146,3.58305075,206.12,206.11,1e-08]
[1757290182355,4.25305075,206.12,206.11,1e-08]
[1757290182657,11.04723699,206.12,206.11,1e-08]
[1757290185837,49.16723699,206.12,206.11,1e-08]
[1757290186049,11.04723699,206.12,206.11,1e-08]
[1757290186246,49.16723699,206.12,206.11,1e-08]
[1757290189039,11.04723699,206.12,206.11,1e-08]
[1757290189253,49.16723699,206.12,206.11,1e-08]
[1757290192355,62.762831,206.12,206.11,1e-08]
[1757290192745,26.0,206.09,206.08,1e-08]
[1757290193058,67.70305075,206.09,206.08,1e-08]
[1757290193254,68.37305075,206.09,206.08,1e-08]
[1757290193446,88.7638203,206.09,206.08,1e-08]
[1757290194040,88.7638203,206.09,206.06,1e-08]
[1757290194041,13.59559401,206.08,206.06,1e-08]
[1757290194356,55.29864476,206.07,206.06,1e-08]
[1757290194551,55.96864476,206.07,206.06,1e-08]
[1757290194729,70.54342553,206.07,206.06,1e-08]